[Event "32nd NATO Chess Championship"]
[Site "Tartu, Estonia"]
[Date "2022.07.01"]
[Round "7.16"]
[White "Schott, Guido"]
[Black "Pazeriene, Diana"]
[Result "1/2-1/2"]
[TimeControl "90 min + 30 sec increment from move one"]
[WhiteFideId "4646746"]
[BlackFideId "12802190"]
[WhiteElo "2028"]
[BlackElo "1930"]

1. Nf3 {[%clk 01:30:48]} {[%emt 00:00:11]} Nf6 {[%clk 01:30:39]} {[%emt
00:00:22]} 2. c4 {[%clk 01:30:59]} {[%emt 00:00:19]} c5 {[%clk 01:29:44]}
{[%emt 00:01:25]} 3. Nc3 {[%clk 01:31:08]} {[%emt 00:00:21]} g6 {[%clk
01:29:24]} {[%emt 00:00:50]} 4. g3 {[%clk 01:31:04]} {[%emt 00:00:34]} Bg7
{[%clk 01:28:54]} {[%emt 00:00:59]} 5. Bg2 {[%clk 01:30:35]} {[%emt 00:00:59]}
Nc6 {[%clk 01:26:48]} {[%emt 00:02:37]} 6. O-O {[%clk 01:30:39]} {[%emt
00:00:25]} O-O {[%clk 01:27:10]} {[%emt 00:00:08]} 7. d4 {[%clk 01:29:36]}
{[%emt 00:01:33]} cxd4 {[%clk 01:20:26]} {[%emt 00:07:14]} 8. Nxd4 {[%clk
01:29:49]} {[%emt 00:00:17]} Nxd4 {[%clk 01:20:35]} {[%emt 00:00:21]} 9. Qxd4
{[%clk 01:30:11]} {[%emt 00:00:08]} d6 {[%clk 01:20:19]} {[%emt 00:00:47]} 10.
Qd2 {[%clk 01:22:24]} {[%emt 00:08:16]} a6 {[%clk 01:17:53]} {[%emt 00:02:57]}
11. b3 {[%clk 01:21:41]} {[%emt 00:01:13]} Rb8 {[%clk 01:17:17]} {[%emt
00:01:05]} 12. Bb2 {[%clk 01:14:48]} {[%emt 00:07:22]} b5 {[%clk 01:14:28]}
{[%emt 00:03:20]} 13. cxb5 {[%clk 01:14:16]} {[%emt 00:01:02]} axb5 {[%clk
01:14:56]} {[%emt 00:00:02]} 14. Nd5 {[%clk 01:12:29]} {[%emt 00:02:16]} Nxd5
{[%clk 01:14:13]} {[%emt 00:01:14]} 15. Bxg7 {[%clk 01:12:10]} {[%emt
00:00:49]} Kxg7 {[%clk 01:14:37]} {[%emt 00:00:06]} 16. Bxd5 {[%clk 01:10:44]}
{[%emt 00:01:55]} b4 {[%clk 01:08:46]} {[%emt 00:06:22]} 17. Rfd1 {[%clk
01:06:29]} {[%emt 00:04:45]} Qb6 {[%clk 00:59:00]} {[%emt 00:10:15]} 18. h4
{[%clk 01:03:04]} {[%emt 00:03:56]} h5 {[%clk 00:56:36]} {[%emt 00:02:54]} 19.
Bf3 {[%clk 01:01:02]} {[%emt 00:02:31]} Qb5 {[%clk 00:42:42]} {[%emt 00:14:23]}
20. Rac1 {[%clk 00:49:32]} {[%emt 00:12:00]} Bb7 {[%clk 00:39:52]} {[%emt
00:03:21]} 21. Qd4+ {[%clk 00:45:31]} {[%emt 00:04:31]} Kg8 {[%clk 00:38:50]}
{[%emt 00:01:32]} 22. Rc7 {[%clk 00:37:20]} {[%emt 00:08:41]} Bxf3 {[%clk
00:34:29]} {[%emt 00:04:51]} 23. exf3 {[%clk 00:37:38]} {[%emt 00:00:12]} Qe2
{[%clk 00:31:08]} {[%emt 00:03:51]} 24. Rd2 {[%clk 00:31:23]} {[%emt 00:06:45]}
Qe1+ {[%clk 00:30:52]} {[%emt 00:00:46]} 25. Kg2 {[%clk 00:31:25]} {[%emt
00:00:28]} Rb5 {[%clk 00:25:37]} {[%emt 00:05:45]} 26. Qe3 {[%clk 00:24:23]}
{[%emt 00:07:31]} Qxe3 {[%clk 00:21:45]} {[%emt 00:04:22]} 27. fxe3 {[%clk
00:24:49]} {[%emt 00:00:05]} Re5 {[%clk 00:22:11]} {[%emt 00:00:04]} 28. Kf2
{[%clk 00:23:40]} {[%emt 00:01:38]} Rb8 {[%clk 00:19:23]} {[%emt 00:03:19]} 29.
Rdc2 {[%clk 00:22:02]} {[%emt 00:02:08]} Kf8 {[%clk 00:17:56]} {[%emt
00:01:56]} 30. Rc8+ {[%clk 00:20:49]} {[%emt 00:01:44]} Rxc8 {[%clk 00:18:15]}
{[%emt 00:00:12]} 31. Rxc8+ {[%clk 00:21:15]} {[%emt 00:00:03]} Kg7 {[%clk
00:18:38]} {[%emt 00:00:07]} 32. Rb8 {[%clk 00:20:44]} {[%emt 00:01:00]} Ra5
{[%clk 00:18:08]} {[%emt 00:01:01]} 33. f4 {[%clk 00:19:19]} {[%emt 00:01:55]}
Rxa2+ {[%clk 00:18:11]} {[%emt 00:00:26]} 34. Kf3 {[%clk 00:19:45]} {[%emt
00:00:04]} d5 {[%clk 00:14:47]} {[%emt 00:03:55]} 35. Rxb4 {[%clk 00:20:04]}
{[%emt 00:00:10]} Rc2 {[%clk 00:14:07]} {[%emt 00:01:10]} 36. Rb8 {[%clk
00:17:37]} {[%emt 00:02:58]} e6 {[%clk 00:14:07]} {[%emt 00:00:30]} 37. b4
{[%clk 00:17:55]} {[%emt 00:00:11]} Rb2 {[%clk 00:13:49]} {[%emt 00:00:48]} 38.
b5 {[%clk 00:17:54]} {[%emt 00:00:31]} Kf6 {[%clk 00:13:23]} {[%emt 00:00:57]}
39. b6 {[%clk 00:18:00]} {[%emt 00:00:24]} Kg7 {[%clk 00:12:25]} {[%emt
00:01:27]} 40. Rb7 {[%clk 00:17:46]} {[%emt 00:00:45]} 1/2-1/2

[Event "32nd NATO Chess Championship"]
[Site "Tartu, Estonia"]
[Date "2022.07.01"]
[Round "7.17"]
[White "Jacob, Tobias"]
[Black "Farrell, John"]
[Result "1/2-1/2"]
[TimeControl "90 min + 30 sec increment from move one"]
[WhiteFideId "12903221"]
[BlackFideId "2024608"]
[WhiteElo "2013"]
[BlackElo "1913"]

1. c4 {[%clk 01:28:57]} {[%emt 00:02:02]} e5 {[%clk 01:30:46]} {[%emt
00:00:13]} 2. g3 {[%clk 01:29:09]} {[%emt 00:00:19]} Nc6 {[%clk 01:31:09]}
{[%emt 00:00:07]} 3. Bg2 {[%clk 01:29:26]} {[%emt 00:00:13]} Bc5 {[%clk
01:31:29]} {[%emt 00:00:10]} 4. Nc3 {[%clk 01:29:35]} {[%emt 00:00:21]} a6
{[%clk 01:31:37]} {[%emt 00:00:23]} 5. e3 {[%clk 01:29:36]} {[%emt 00:00:28]}
d6 {[%clk 01:31:38]} {[%emt 00:00:29]} 6. Nge2 {[%clk 01:29:35]} {[%emt
00:00:31]} Nge7 {[%clk 01:31:43]} {[%emt 00:00:25]} 7. a3 {[%clk 01:28:00]}
{[%emt 00:02:05]} O-O {[%clk 01:31:56]} {[%emt 00:00:16]} 8. O-O {[%clk
01:28:06]} {[%emt 00:00:24]} Bg4 {[%clk 01:30:53]} {[%emt 00:01:34]} 9. h3
{[%clk 01:27:59]} {[%emt 00:00:37]} Bh5 {[%clk 01:31:15]} {[%emt 00:00:08]} 10.
b4 {[%clk 01:22:52]} {[%emt 00:05:38]} Ba7 {[%clk 01:31:10]} {[%emt 00:00:34]}
11. Nd5 {[%clk 01:19:08]} {[%emt 00:04:13]} Bg6 {[%clk 01:29:51]} {[%emt
00:01:49]} 12. d4 {[%clk 01:07:08]} {[%emt 00:12:31]} exd4 {[%clk 01:27:59]}
{[%emt 00:02:22]} 13. exd4 {[%clk 01:04:10]} {[%emt 00:03:29]} Nxd5 {[%clk
01:27:43]} {[%emt 00:00:45]} 14. Bxd5 {[%clk 01:03:36]} {[%emt 00:01:04]} Qd7
{[%clk 01:27:41]} {[%emt 00:00:32]} 15. Bg2 {[%clk 01:01:01]} {[%emt 00:03:05]}
Rfe8 {[%clk 01:25:06]} {[%emt 00:03:05]} 16. Be3 {[%clk 00:50:12]} {[%emt
00:11:18]} Be4 {[%clk 01:25:15]} {[%emt 00:00:21]} 17. Nc3 {[%clk 00:47:41]}
{[%emt 00:03:02]} Bxg2 {[%clk 01:25:11]} {[%emt 00:00:34]} 18. Kxg2 {[%clk
00:48:05]} {[%emt 00:00:06]} Ne7 {[%clk 01:24:11]} {[%emt 00:01:29]} 19. Qf3
{[%clk 00:36:06]} {[%emt 00:12:29]} Qc6 {[%clk 01:21:15]} {[%emt 00:03:27]} 20.
Qxc6 {[%clk 00:35:23]} {[%emt 00:01:13]} Nxc6 {[%clk 01:21:30]} {[%emt
00:00:15]} 21. Rfd1 {[%clk 00:24:14]} {[%emt 00:11:39]} Ne7 {[%clk 01:21:25]}
{[%emt 00:00:35]} 22. g4 {[%clk 00:23:55]} {[%emt 00:00:48]} Ng6 {[%clk
01:15:44]} {[%emt 00:06:12]} 23. Rd3 {[%clk 00:20:03]} {[%emt 00:04:21]} Rad8
{[%clk 01:10:37]} {[%emt 00:05:37]} 24. a4 {[%clk 00:19:30]} {[%emt 00:01:04]}
c6 {[%clk 01:10:04]} {[%emt 00:01:02]} 25. b5 {[%clk 00:12:19]} {[%emt
00:07:42]} d5 {[%clk 01:08:16]} {[%emt 00:02:18]} 26. c5 {[%clk 00:12:17]}
{[%emt 00:00:32]} Bb8 {[%clk 01:02:53]} {[%emt 00:05:52]} 27. Ne2 {[%clk
00:11:27]} {[%emt 00:01:20]} f5 {[%clk 01:00:52]} {[%emt 00:02:31]} 28. Ra2
{[%clk 00:06:53]} {[%emt 00:05:05]} f4 {[%clk 01:00:29]} {[%emt 00:00:53]} 29.
Bc1 {[%clk 00:07:11]} {[%emt 00:00:11]} Nh4+ {[%clk 01:00:30]} {[%emt
00:00:29]} 30. Kf1 {[%clk 00:07:26]} {[%emt 00:00:16]} g5 {[%clk 00:58:55]}
{[%emt 00:02:04]} 31. bxc6 {[%clk 00:07:39]} {[%emt 00:00:18]} bxc6 {[%clk
00:59:12]} {[%emt 00:00:13]} 32. Bd2 {[%clk 00:07:38]} {[%emt 00:00:31]} Bc7
{[%clk 00:58:01]} {[%emt 00:01:40]} 33. Rb2 {[%clk 00:07:51]} {[%emt 00:00:17]}
Rb8 {[%clk 00:58:17]} {[%emt 00:00:14]} 34. Rdb3 {[%clk 00:07:24]} {[%emt
00:00:57]} Nf3 {[%clk 00:54:39]} {[%emt 00:04:09]} 35. Bc3 {[%clk 00:05:49]}
{[%emt 00:02:04]} Nh2+ {[%clk 00:53:42]} {[%emt 00:01:26]} 36. Kg1 {[%clk
00:05:58]} {[%emt 00:00:22]} Rxb3 {[%clk 00:45:45]} {[%emt 00:08:27]} 37. Rxb3
{[%clk 00:06:26]} {[%emt 00:00:02]} Rxe2 {[%clk 00:45:20]} {[%emt 00:00:55]} 38.
Kxh2 {[%clk 00:06:42]} {[%emt 00:00:14]} f3+ {[%clk 00:44:39]} {[%emt
00:01:11]} 39. Kg1 {[%clk 00:06:50]} {[%emt 00:00:23]} Rc2 {[%clk 00:42:25]}
{[%emt 00:02:43]} 40. Kf1 {[%clk 00:05:16]} {[%emt 00:02:05]} Rc1+ {[%clk
00:41:51]} {[%emt 00:01:04]} 41. Be1 {[%clk 00:05:41]} {[%emt 00:00:05]} Ba5
{[%clk 00:40:59]} {[%emt 00:01:22]} 42. Re3 {[%clk 00:05:57]} {[%emt 00:00:14]}
Ra1 {[%clk 00:37:46]} {[%emt 00:03:43]} 1/2-1/2

[Event "32nd NATO Chess Championship"]
[Site "Tartu, Estonia"]
[Date "2022.07.01"]
[Round "7.19"]
[White "Pedersen, Finn"]
[Black "Tammisto, Janek"]
[Result "1-0"]
[TimeControl "90 min + 30 sec increment from move one"]
[WhiteTitle "FM"]
[WhiteFideId "1400762"]
[BlackFideId "4510950"]
[WhiteElo "2300"]
[BlackElo "1881"]

1. e4 {[%clk 01:30:45]} {[%emt 00:00:15]} g6 {[%clk 01:30:49]} {[%emt
00:00:11]} 2. d4 {[%clk 01:30:00]} {[%emt 00:01:15]} Bg7 {[%clk 01:31:11]}
{[%emt 00:00:08]} 3. Nc3 {[%clk 01:30:01]} {[%emt 00:00:29]} d6 {[%clk
01:31:33]} {[%emt 00:00:08]} 4. Be3 {[%clk 01:29:28]} {[%emt 00:01:03]} b6
{[%clk 01:31:05]} {[%emt 00:00:59]} 5. Qd2 {[%clk 01:27:30]} {[%emt 00:02:27]}
Bb7 {[%clk 01:30:31]} {[%emt 00:01:04]} 6. O-O-O {[%clk 01:27:04]} {[%emt
00:00:56]} Nd7 {[%clk 01:29:59]} {[%emt 00:01:02]} 7. f3 {[%clk 01:26:08]}
{[%emt 00:01:26]} c5 {[%clk 01:27:35]} {[%emt 00:02:54]} 8. Nge2 {[%clk
01:25:22]} {[%emt 00:01:15]} a6 {[%clk 01:23:07]} {[%emt 00:04:59]} 9. g4
{[%clk 01:24:30]} {[%emt 00:01:21]} b5 {[%clk 01:14:00]} {[%emt 00:09:38]} 10.
dxc5 {[%clk 01:19:45]} {[%emt 00:05:15]} Nxc5 {[%clk 01:12:35]} {[%emt
00:01:53]} 11. Bd4 {[%clk 01:18:19]} {[%emt 00:01:57]} Ne6 {[%clk 01:12:16]}
{[%emt 00:00:50]} 12. Bxg7 {[%clk 01:18:19]} {[%emt 00:00:30]} Nxg7 {[%clk
01:12:45]} {[%emt 00:00:01]} 13. Qd4 {[%clk 01:16:28]} {[%emt 00:02:20]} e5
{[%clk 01:09:22]} {[%emt 00:03:53]} 14. Qxd6 {[%clk 01:16:05]} {[%emt
00:00:54]} Qxd6 {[%clk 01:09:48]} {[%emt 00:00:05]} 15. Rxd6 {[%clk 01:16:29]}
{[%emt 00:00:05]} Rd8 {[%clk 01:07:46]} {[%emt 00:02:32]} 16. Rb6 {[%clk
01:15:11]} {[%emt 00:01:47]} Rd7 {[%clk 01:05:26]} {[%emt 00:02:51]} 17. a4
{[%clk 01:14:24]} {[%emt 00:01:16]} Ne7 {[%clk 01:04:09]} {[%emt 00:01:48]} 18.
axb5 {[%clk 01:12:07]} {[%emt 00:02:48]} Nc8 {[%clk 01:03:57]} {[%emt
00:00:41]} 19. Rxb7 {[%clk 01:11:43]} {[%emt 00:00:53]} Rxb7 {[%clk 01:04:20]}
{[%emt 00:00:08]} 20. bxa6 {[%clk 01:12:09]} {[%emt 00:00:05]} Ra7 {[%clk
01:00:59]} {[%emt 00:03:49]} 21. Nb5 {[%clk 01:11:49]} {[%emt 00:00:51]} Rd7
{[%clk 01:00:26]} {[%emt 00:01:03]} 22. Nec3 {[%clk 01:12:02]} {[%emt
00:00:17]} Ne6 {[%clk 00:58:50]} {[%emt 00:02:06]} 23. Nd5 {[%clk 01:12:05]}
{[%emt 00:00:26]} Kd8 {[%clk 00:58:07]} {[%emt 00:01:14]} 24. b4 {[%clk
01:11:11]} {[%emt 00:01:23]} Nd4 {[%clk 00:54:09]} {[%emt 00:04:28]} 25. Nxd4
{[%clk 01:10:17]} {[%emt 00:01:24]} exd4 {[%clk 00:54:37]} {[%emt 00:00:03]} 26.
Bb5 {[%clk 01:10:11]} {[%emt 00:00:35]} Rd6 {[%clk 00:53:26]} {[%emt 00:01:41]}
27. Rd1 {[%clk 01:10:08]} {[%emt 00:00:33]} Nb6 {[%clk 00:52:29]} {[%emt
00:01:28]} 28. a7 {[%clk 01:07:19]} {[%emt 00:03:18]} Na8 {[%clk 00:52:16]}
{[%emt 00:00:43]} 29. Rxd4 {[%clk 01:07:25]} {[%emt 00:00:24]} Kc8 {[%clk
00:51:50]} {[%emt 00:00:57]} 30. e5 {[%clk 01:06:27]} {[%emt 00:01:27]} Re6
{[%clk 00:50:54]} {[%emt 00:01:26]} 31. f4 {[%clk 00:59:05]} {[%emt 00:07:52]}
Kb7 {[%clk 00:47:29]} {[%emt 00:03:55]} 32. Bd7 {[%clk 00:55:12]} {[%emt
00:04:23]} Ra6 {[%clk 00:46:07]} {[%emt 00:01:52]} 33. f5 {[%clk 00:54:10]}
{[%emt 00:01:33]} Rxa7 {[%clk 00:40:53]} {[%emt 00:05:44]} 34. e6 {[%clk
00:54:08]} {[%emt 00:00:32]} fxe6 {[%clk 00:39:52]} {[%emt 00:01:30]} 35. fxe6
{[%clk 00:54:28]} {[%emt 00:00:10]} Ra1+ {[%clk 00:36:51]} {[%emt 00:03:31]} 36.
Kb2 {[%clk 00:52:47]} {[%emt 00:02:10]} Re1 {[%clk 00:36:51]} {[%emt 00:00:30]}
37. e7 {[%clk 00:52:53]} {[%emt 00:00:25]} Nc7 {[%clk 00:36:58]} {[%emt
00:00:23]} 38. Nxc7 {[%clk 00:52:45]} {[%emt 00:00:38]} Kxc7 {[%clk 00:34:00]}
{[%emt 00:03:29]} 39. e8=Q {[%clk 00:52:14]} {[%emt 00:01:01]} Rhxe8 {[%clk
00:34:05]} {[%emt 00:00:23]} 40. Bxe8 {[%clk 00:52:38]} {[%emt 00:00:07]} Rxe8
{[%clk 00:34:30]} {[%emt 00:00:05]} 41. h4 {[%clk 00:52:09]} {[%emt 00:00:59]}
h6 {[%clk 00:32:19]} {[%emt 00:02:42]} 42. Rf4 {[%clk 00:51:15]} {[%emt
00:01:21]} g5 {[%clk 00:31:22]} {[%emt 00:01:29]} 43. hxg5 {[%clk 00:51:27]}
{[%emt 00:00:19]} hxg5 {[%clk 00:31:44]} {[%emt 00:00:08]} 44. Rc4+ {[%clk
00:50:54]} {[%emt 00:01:03]} Kb6 {[%clk 00:31:45]} {[%emt 00:00:29]} 45. Kb3
{[%clk 00:50:21]} {[%emt 00:01:02]} Re3+ {[%clk 00:31:54]} {[%emt 00:00:22]} 46.
c3 {[%clk 00:50:28]} {[%emt 00:00:23]} Rg3 {[%clk 00:32:18]} {[%emt 00:00:05]}
47. Re4 {[%clk 00:50:27]} {[%emt 00:00:29]} Kc6 {[%clk 00:31:25]} {[%emt
00:01:26]} 48. Kc4 {[%clk 00:50:42]} {[%emt 00:00:15]} Kd6 {[%clk 00:30:49]}
{[%emt 00:01:05]} 49. Rd4+ {[%clk 00:47:37]} {[%emt 00:03:35]} Kc6 {[%clk
00:29:41]} {[%emt 00:01:38]} 50. b5+ {[%clk 00:47:47]} {[%emt 00:00:20]} Kb6
{[%clk 00:30:01]} {[%emt 00:00:10]} 51. Kb4 {[%clk 00:47:19]} {[%emt 00:00:58]}
Rg1 {[%clk 00:30:17]} {[%emt 00:00:14]} 52. c4 {[%clk 00:46:40]} {[%emt
00:01:10]} Rb1+ {[%clk 00:30:16]} {[%emt 00:00:29]} 53. Kc3 {[%clk 00:47:02]}
{[%emt 00:00:09]} Rg1 {[%clk 00:30:34]} {[%emt 00:00:11]} 54. Re4 {[%clk
00:46:54]} {[%emt 00:00:39]} Rg2 {[%clk 00:29:42]} {[%emt 00:01:22]} 55. Kd4
{[%clk 00:46:57]} {[%emt 00:00:26]} Rd2+ {[%clk 00:29:37]} {[%emt 00:00:35]} 56.
Ke5 {[%clk 00:43:50]} {[%emt 00:03:36]} Rf2 {[%clk 00:29:46]} {[%emt 00:00:23]}
57. Kd4 {[%clk 00:42:17]} {[%emt 00:02:03]} Rd2+ {[%clk 00:30:02]} {[%emt
00:00:15]} 58. Ke3 {[%clk 00:42:40]} {[%emt 00:00:06]} Rc2 {[%clk 00:28:36]}
{[%emt 00:01:57]} 59. Re6+ {[%clk 00:42:33]} {[%emt 00:00:37]} Kc7 {[%clk
00:28:34]} {[%emt 00:00:32]} 60. Rc6+ {[%clk 00:42:19]} {[%emt 00:00:43]} Kb7
{[%clk 00:28:46]} {[%emt 00:00:18]} 61. Rc5 {[%clk 00:41:32]} {[%emt 00:01:17]}
Kb6 {[%clk 00:27:08]} {[%emt 00:02:08]} 62. Kd3 {[%clk 00:41:23]} {[%emt
00:00:38]} Rc1 {[%clk 00:26:41]} {[%emt 00:00:58]} 63. Rxg5 {[%clk 00:41:41]}
{[%emt 00:00:13]} Rg1 {[%clk 00:27:03]} {[%emt 00:00:07]} 64. Rg6+ {[%clk
00:41:51]} {[%emt 00:00:20]} Kc7 {[%clk 00:27:18]} {[%emt 00:00:16]} 65. Kd4
{[%clk 00:42:06]} {[%emt 00:00:14]} Rd1+ {[%clk 00:27:33]} {[%emt 00:00:16]} 66.
Kc5 {[%clk 00:42:27]} {[%emt 00:00:08]} Rd7 {[%clk 00:27:18]} {[%emt 00:00:44]}
67. b6+ {[%clk 00:42:14]} {[%emt 00:00:44]} Kb7 {[%clk 00:27:35]} {[%emt
00:00:13]} 68. Kb5 {[%clk 00:42:34]} {[%emt 00:00:10]} Rd1 {[%clk 00:27:58]}
{[%emt 00:00:07]} 69. Rg7+ {[%clk 00:42:58]} {[%emt 00:00:07]} Kc8 {[%clk
00:27:42]} {[%emt 00:00:46]} 70. c5 {[%clk 00:43:01]} {[%emt 00:00:25]} Rb1+
{[%clk 00:27:39]} {[%emt 00:00:34]} 71. Kc6 {[%clk 00:43:25]} {[%emt 00:00:06]}
Kd8 {[%clk 00:27:54]} {[%emt 00:00:15]} 72. b7 {[%clk 00:43:12]} {[%emt
00:00:43]} Rb2 {[%clk 00:28:06]} {[%emt 00:00:19]} 73. b8=Q+ {[%clk 00:42:49]}
{[%emt 00:00:53]} 1-0

[Event "32nd NATO Chess Championship"]
[Site "Tartu, Estonia"]
[Date "2022.07.01"]
[Round "7.21"]
[White "Sauer, Marko"]
[Black "Kocur, Marc"]
[Result "1-0"]
[TimeControl "90 min + 30 sec increment from move one"]
[WhiteFideId "1270766"]
[BlackFideId "205036"]
[WhiteElo "2065"]
[BlackElo "1835"]

1. d4 {[%clk 01:30:45]} {[%emt 00:00:14]} d5 {[%clk 01:30:50]} {[%emt
00:00:10]} 2. Nf3 {[%clk 01:30:56]} {[%emt 00:00:19]} c6 {[%clk 01:31:03]}
{[%emt 00:00:16]} 3. c4 {[%clk 01:30:38]} {[%emt 00:00:49]} e6 {[%clk
01:31:23]} {[%emt 00:00:08]} 4. e3 {[%clk 01:27:34]} {[%emt 00:03:36]} Be7
{[%clk 01:26:30]} {[%emt 00:05:23]} 5. Nc3 {[%clk 01:27:07]} {[%emt 00:00:58]}
f5 {[%clk 01:26:33]} {[%emt 00:00:26]} 6. Ne5 {[%clk 01:23:07]} {[%emt
00:04:30]} Nf6 {[%clk 01:25:42]} {[%emt 00:01:20]} 7. Bd3 {[%clk 01:18:47]}
{[%emt 00:04:52]} O-O {[%clk 01:25:42]} {[%emt 00:00:28]} 8. Qc2 {[%clk
01:15:23]} {[%emt 00:03:55]} a6 {[%clk 01:22:26]} {[%emt 00:03:46]} 9. a4
{[%clk 01:13:54]} {[%emt 00:02:00]} Ne4 {[%clk 01:19:17]} {[%emt 00:03:38]} 10.
f3 {[%clk 01:06:03]} {[%emt 00:08:21]} Nxc3 {[%clk 01:18:50]} {[%emt 00:00:57]}
11. bxc3 {[%clk 01:06:06]} {[%emt 00:00:28]} Nd7 {[%clk 01:18:23]} {[%emt
00:00:55]} 12. Nxd7 {[%clk 01:02:13]} {[%emt 00:04:24]} Bxd7 {[%clk 01:18:30]}
{[%emt 00:00:23]} 13. c5 {[%clk 00:59:07]} {[%emt 00:03:36]} e5 {[%clk
00:58:13]} {[%emt 00:20:46]} 14. O-O {[%clk 00:51:13]} {[%emt 00:08:25]} e4
{[%clk 00:47:24]} {[%emt 00:11:19]} 15. Be2 {[%clk 00:50:18]} {[%emt 00:01:25]}
Qc7 {[%clk 00:40:41]} {[%emt 00:07:12]} 16. Rb1 {[%clk 00:47:20]} {[%emt
00:03:29]} Rad8 {[%clk 00:34:04]} {[%emt 00:07:05]} 17. Qb3 {[%clk 00:46:48]}
{[%emt 00:01:04]} Bc8 {[%clk 00:34:25]} {[%emt 00:00:08]} 18. c4 {[%clk
00:45:40]} {[%emt 00:01:39]} Kh8 {[%clk 00:33:38]} {[%emt 00:01:16]} 19. Bd2
{[%clk 00:44:38]} {[%emt 00:01:33]} Rf6 {[%clk 00:22:03]} {[%emt 00:12:05]} 20.
Qb6 {[%clk 00:38:25]} {[%emt 00:06:43]} Qxb6 {[%clk 00:21:50]} {[%emt
00:00:43]} 21. Rxb6 {[%clk 00:37:29]} {[%emt 00:01:26]} dxc4 {[%clk 00:21:06]}
{[%emt 00:01:14]} 22. Bc3 {[%clk 00:35:36]} {[%emt 00:02:23]} Rdf8 {[%clk
00:14:47]} {[%emt 00:06:48]} 23. f4 {[%clk 00:31:33]} {[%emt 00:04:33]} h5
{[%clk 00:12:03]} {[%emt 00:03:13]} 24. Bxc4 {[%clk 00:29:52]} {[%emt
00:02:12]} h4 {[%clk 00:11:36]} {[%emt 00:00:57]} 25. Kf2 {[%clk 00:28:53]}
{[%emt 00:01:29]} Kh7 {[%clk 00:11:42]} {[%emt 00:00:24]} 26. Rfb1 {[%clk
00:28:21]} {[%emt 00:01:03]} g5 {[%clk 00:09:16]} {[%emt 00:02:55]} 27. Rxb7
{[%clk 00:24:01]} {[%emt 00:04:51]} Bxb7 {[%clk 00:08:52]} {[%emt 00:00:54]} 28.
Rxb7 {[%clk 00:24:30]} Re8 {[%clk 00:07:58]} {[%emt 00:01:23]} 29. d5 {[%clk
00:24:44]} {[%emt 00:00:16]} cxd5 {[%clk 00:07:41]} {[%emt 00:00:47]} 30. Bxf6
{[%clk 00:24:28]} {[%emt 00:00:47]} dxc4 {[%clk 00:07:58]} {[%emt 00:00:12]} 31.
Rxe7+ {[%clk 00:24:32]} {[%emt 00:00:26]} Rxe7 {[%clk 00:08:24]} {[%emt
00:00:05]} 32. Bxe7 {[%clk 00:24:56]} {[%emt 00:00:06]} gxf4 {[%clk 00:08:42]}
{[%emt 00:00:11]} 33. c6 {[%clk 00:25:08]} {[%emt 00:00:19]} 1-0